fUSD/lending_fUSD_20260121
["ID","MTS","AMOUNT","RATE_DAILY","PERIOD"]
[402992867,1769027441008,-150.0,0.00017754,2]
[402992869,1769027441017,-500.0,0.00017754,2]
[402992871,1769027441027,-500.0,0.00017754,2]
[402992873,1769027441037,-500.0,0.00017754,2]
[402992875,1769027441045,-500.0,0.00017754,2]
[402992877,1769027441054,-500.0,0.00017754,2]
[402992879,1769027441063,-424.0,0.00017754,2]
[402992881,1769027441073,-500.0,0.00017754,2]
[402992883,1769027441082,-150.0,0.00017754,2]
[402992885,1769027441092,-442.0,0.00017754,2]
[402992887,1769027441102,-500.0,0.00017754,2]
[402992889,1769027441111,-695.0,0.00017754,2]
[402992891,1769027441121,-542.0,0.00017754,2]
[402992893,1769027441131,-289.0,0.00017756,2]
[402992895,1769027441141,-773.0,0.00017767,2]
[402992897,1769027441150,-200.0,0.00017776,2]
[402992899,1769027441161,-200.0,0.00017776,2]
[402992901,1769027441170,-773.0,0.0001779,2]
[402992903,1769027441179,-8475.4741941,0.00017793,2]
[402992905,1769027441188,-1713.129689,0.00017796,2]
[402992907,1769027441197,-10900.0,0.000178,6]
[402992909,1769027441206,-773.0,0.00017804,2]
[402992911,1769027441215,-200.49238854,0.00017808,2]
[402992913,1769027441225,-500.0,0.00017808,2]
[402992915,1769027441234,-357.1948729,0.00017809,2]
[402992917,1769027441243,-150.0,0.00017809,2]
[402992919,1769027441252,-500.0,0.00017809,2]
[402992921,1769027441262,-500.0,0.00017809,2]
[402992923,1769027441271,-150.0,0.00017809,2]
[402992925,1769027441280,-150.0,0.00017809,2]
[402992927,1769027441289,-150.0,0.00017809,2]
[402992929,1769027441298,-917.0,0.00017809,2]
[402992931,1769027441307,-250.0,0.00017809,2]
[402992933,1769027441316,-500.00000017,0.00017809,2]
[402992935,1769027441325,-500.0,0.00017809,2]
[402992937,1769027441334,-500.0,0.00017809,2]
[402992939,1769027441344,-500.0,0.00017809,2]
[402992941,1769027441353,-500.0,0.00017809,2]
[402992943,1769027441362,-424.0,0.00017809,2]
[402992945,1769027441371,-500.0,0.00017809,2]
[402992948,1769027441381,-150.0,0.00017809,2]
[402992950,1769027441389,-442.0,0.00017809,2]
[402992952,1769027441399,-362.36201849,0.00017809,2]
[402992954,1769027441412,-695.0,0.00017809,2]
[402992956,1769027441422,-542.0,0.00017809,2]
[402992979,1769027441628,-773.0,0.00017815,2]
[402992982,1769027441648,-1000.17631861,0.0001786,2]
[402992984,1769027441657,-500.0,0.00017863,2]
[402992986,1769027441666,-250.0,0.00017863,2]
[402992988,1769027441674,-500.0,0.00017863,2]
[402992990,1769027441683,-500.0,0.00017863,2]
[402992992,1769027441692,-250.0,0.00017863,2]
[402992994,1769027441701,-250.0,0.00017863,2]
[402992996,1769027441710,-250.0,0.00017863,2]
[402992997,1769027441719,-917.0,0.00017863,2]
[402992999,1769027441728,-500.0,0.00017863,2]
[402993001,1769027441737,-500.0,0.00017863,2]
[402993003,1769027441748,-500.0,0.00017863,2]
[402993005,1769027441770,-500.0,0.00017863,2]
[402993007,1769027441794,-424.0,0.00017863,2]
[402993009,1769027441817,-500.0,0.00017863,2]
[402993011,1769027441838,-150.0,0.00017863,2]
[402993013,1769027441860,-442.0,0.00017863,2]
[402993015,1769027441882,-695.0,0.00017863,2]
[402993017,1769027441903,-542.0,0.00017863,2]
[402993019,1769027441925,-2100.0,0.000179,6]
[402993021,1769027441949,-7059.4573593,0.000179,2]
[402993023,1769027441983,-3585.14559331,0.000179,2]
[402993025,1769027442015,-153.18312806,0.000179,2]
[402993027,1769027442036,-6509.92848883,0.000179,2]
[402993029,1769027442057,-2496.10383217,0.000179,2]
[402993031,1769027442079,-500.0,0.00017918,2]
[402993033,1769027442100,-500.0,0.00017918,2]
[402993035,1769027442109,-311.52352362,0.00017918,2]
[402993037,1769027442119,-917.0,0.00017918,2]
[402993039,1769027442128,-500.0,0.00017918,2]
[402993041,1769027442137,-500.0,0.00017918,2]
[402993043,1769027442146,-500.0,0.00017918,2]
[402993045,1769027442156,-500.0,0.00017918,2]
[402993047,1769027442165,-424.0,0.00017918,2]
[402993049,1769027442174,-500.0,0.00017918,2]
[402993051,1769027442183,-150.0,0.00017918,2]
[402993053,1769027442193,-442.0,0.00017918,2]
[402993055,1769027442202,-695.0,0.00017918,2]
[402993057,1769027442212,-542.0,0.00017918,2]
[402993059,1769027442221,-773.0,0.00017938,2]
[402993061,1769027442230,-333.27001132,0.00017942,2]
[402993063,1769027442240,-200.0,0.00017954,2]
[402993065,1769027442249,-200.0,0.00017954,2]
[402993067,1769027442259,-1321.57411122,0.0001797,2]
[402993069,1769027442268,-503.51325329,0.00017972,2]
[402993071,1769027442278,-30935.0,0.00017973,2]
[402993073,1769027442287,-500.0,0.00017973,2]
[402993075,1769027442296,-917.0,0.00017973,2]
[402993077,1769027442305,-271.24421117,0.00017973,2]
[402993079,1769027442315,-500.0,0.00017973,2]
[402993081,1769027442325,-500.0,0.00017973,2]
[402993083,1769027442334,-500.0,0.00017973,2]
[402993085,1769027442344,-424.0,0.00017973,2]
[402993087,1769027442353,-500.0,0.00017973,2]
[402993089,1769027442363,-184.08570023,0.00017973,2]
[402993091,1769027442372,-442.0,0.00017973,2]
[402993093,1769027442382,-695.0,0.00017973,2]
[402993095,1769027442391,-542.0,0.00017973,2]
[402993097,1769027442400,-150.0,0.00017973,2]
[402993099,1769027442413,-500.0,0.0001799,2]
[402993101,1769027442422,-500.0,0.0001799,2]
[402993103,1769027442431,-392.31342715,0.0001799,2]
[402993105,1769027442441,-1524.41729282,0.0001799,2]
[402993107,1769027442451,-1524.41729282,0.0001799,2]
[402993109,1769027442462,-166.251615,0.00017997,2]
[402993111,1769027442471,-11836.50726652,0.00017999,2]
[402993114,1769027442485,-150.0,0.00017999,2]
[402993115,1769027442494,-150.0,0.00017999,2]
[402993118,1769027442504,-4570525.75143855,0.00018,2]
[402993120,1769027442519,-7389.36454677,0.00018,2]
[402993315,1769027444708,-10208.49682375,0.00018,2]
[402993319,1769027444739,-2111.11640451,0.00018,2]
[402993321,1769027444750,-13177.90426045,0.00018,2]
[402993323,1769027444761,-564.11572434,0.00018,2]
[402993328,1769027444793,-1344.69,0.00018,2]
[402993413,1769027445799,-1.7e-07,0.00018,2]
[402993416,1769027445811,-30182.6588683,0.00018,2]
[402993428,1769027445992,-4865.58111011,0.00018,2]
[402993429,1769027446003,-577827.81905171,0.00018,2]
[402993440,1769027446365,-318.99903728,0.00018,2]
[402993441,1769027446376,-18872.80445432,0.00018,2]
[402993442,1769027446419,-527903.55152075,0.00018,2]
[402993450,1769027447614,-1512.4669529,0.00018,2]
[402993451,1769027447651,-18655.78417946,0.00018,2]
[402993452,1769027447693,-513.04996445,0.00018,2]
[402993453,1769027447768,-188.81416347,0.00018,2]
[402993454,1769027447872,-9122.49793244,0.00018,2]
[402993455,1769027449164,-17621.23170436,0.00018,2]
[402993456,1769027449203,-1299.261824,0.00018,2]
[402993457,1769027449266,-391.43999997,0.00018,2]
[402993458,1769027449288,-115805.60802661,0.00018,2]
[402993459,1769027449301,-127599.16979711,0.00018,2]
[402993460,1769027498024,260.934,0.00015938,2]
[402993461,1769027543387,2177.115354,0.00015938,2]
[402993462,1769027543414,10000.01,0.00015938,2]
[402993463,1769027543447,10000.01,0.00015938,2]
[402993464,1769027543475,10000.01,0.00015938,2]
[402993465,1769027543502,10000.01,0.00015938,2]
[402993466,1769027543530,10000.01,0.00015938,2]
[402993467,1769027543564,10000.01,0.00015938,2]
[402993468,1769027543590,10000.01,0.00015938,2]
[402993469,1769027543617,10000.01,0.00015938,2]
[402993470,1769027543644,10000.01,0.00015938,2]
[402993471,1769027543680,41490.73802196,0.00015938,2]
[402993472,1769027543708,11335.031788,0.00015938,2]
[402993473,1769027543738,11500.0,0.00015938,2]
[402993474,1769027544763,-981.6941995,0.00015938,2]
[402993475,1769027547135,-260.29062073,0.00015938,2]
[402993476,1769027551539,-162.71146068,0.00015938,2]
[402993477,1769027552530,-10000.01,0.00015938,2]
[402993478,1769027556525,-10000.01,0.00015938,2]
[402993479,1769027560898,-10000.01,0.00015938,2]
[402993480,1769027561073,-10000.01,0.00015938,2]
[402993481,1769027561481,-10000.01,0.00015938,2]
[402993482,1769027561565,-10000.01,0.00015938,2]
[402993483,1769027561659,-10000.01,0.00015938,2]
[402993484,1769027561789,-10000.01,0.00015938,2]
[402993485,1769027561947,-10000.01,0.00015938,2]
[402993486,1769027561989,-10000.01,0.00015938,2]
[402993487,1769027562178,-10000.01,0.00015938,2]
[402993488,1769027563451,-274.76701349,0.00015938,2]
[402993489,1769027563632,-10000.01,0.00015938,2]
[402993490,1769027566220,-10000.01,0.00015938,2]
[402993491,1769027566307,-10000.01,0.00015938,2]
[402993492,1769027566378,-10000.01,0.00015938,2]
[402993493,1769027566427,-10000.01,0.00015938,2]
[402993494,1769027566810,-10000.01,0.00015938,2]
[402993495,1769027566944,-10000.01,0.00015938,2]
[402993496,1769027566983,-10000.01,0.00015938,2]
[402993497,1769027567233,-10000.01,0.00015938,2]
[402993498,1769027567359,-10000.01,0.00015938,2]
[402993499,1769027569370,-10000.01,0.00015938,2]
[402993500,1769027591470,-300.0,0.00015937,2]
[402993501,1769027591520,-9400.01,0.00015938,2]
[402993502,1769027591847,-10000.01,0.00015938,2]
[402993503,1769027591910,-10000.01,0.00015938,2]
[402993504,1769027591939,-10000.01,0.00015938,2]
[402993505,1769027594575,-1281.23712116,0.00015938,2]
[402993506,1769027594631,-7437.53575768,0.00015938,2]
[402993507,1769027600711,-300.0,0.00015937,2]
[402993508,1769027600738,-1200.0,0.00015937,2]
[402993509,1769027601171,-7000.01,0.00015938,2]
[402993510,1769027601263,-10000.01,0.00015938,2]
[402993511,1769027601533,-500.0,0.00015937,2]
[402993512,1769027601566,-500.0,0.00015937,2]
[402993513,1769027601698,-500.0,0.00015937,2]
[402993514,1769027601707,-500.0,0.00015937,2]
[402993515,1769027601716,-500.0,0.00015937,2]
[402993516,1769027601726,-500.0,0.00015937,2]
[402993517,1769027601735,-7000.01,0.00015938,2]
[402993518,1769027601797,-500.0,0.00015937,2]
[402993519,1769027601807,-500.0,0.00015937,2]
[402993520,1769027601816,-500.0,0.00015937,2]
[402993521,1769027601825,-8500.01,0.00015938,2]
[402993522,1769027601983,-500.0,0.00015937,2]
[402993523,1769027602036,-500.0,0.00015937,2]
[402993524,1769027602072,-500.0,0.00015937,2]
[402993525,1769027602082,-7500.01,0.00015938,2]
[402993526,1769027602738,-254.51503636,0.00015937,2]
[402993527,1769027617777,-245.48496364,0.00015937,2]
[402993528,1769027617809,-500.0,0.00015937,2]
[402993529,1769027617841,-500.0,0.00015937,2]
[402993530,1769027617872,-500.0,0.00015937,2]
[402993531,1769027617905,-500.0,0.00015937,2]
[402993532,1769027617938,-500.0,0.00015937,2]
[402993533,1769027617975,-500.0,0.00015937,2]
[402993534,1769027618009,-500.0,0.00015937,2]
[402993535,1769027618042,-500.0,0.00015937,2]
[402993536,1769027618075,-500.0,0.00015937,2]
[402993537,1769027618110,-9.04007272,0.00015937,2]
[402993538,1769027618300,-490.95992728,0.00015937,2]
[402993539,1769027618331,-500.0,0.00015937,2]
[402993540,1769027618367,-500.0,0.00015937,2]
[402993541,1769027618399,-500.0,0.00015937,2]
[402993542,1769027618430,-500.0,0.00015937,2]
[402993543,1769027618467,-500.0,0.00015937,2]
[402993544,1769027618499,-500.0,0.00015937,2]
[402993545,1769027618530,-208.05889434,0.00015937,2]
[402993546,1769027618561,-500.0,0.00015937,2]
[402993547,1769027618597,-500.0,0.00015937,2]
[402993548,1769027618631,-101.97235676,0.00015937,2]
[402993549,1769027619119,-398.02764324,0.00015937,2]
[402993550,1769027619151,-500.0,0.00015937,2]
[402993551,1769027619926,-215.70872266,0.00015938,2]
[402993552,1769027621688,500.0,0.00015937,2]
[402993553,1769027621724,500.0,0.00015937,2]
[402993554,1769027621756,500.0,0.00015937,2]
[402993555,1769027621788,500.0,0.00015937,2]
[402993556,1769027621821,500.0,0.00015937,2]
[402993557,1769027621872,500.0,0.00015937,2]
[402993558,1769027621990,500.0,0.00015937,2]
[402993559,1769027622072,500.0,0.00015937,2]
[402993560,1769027622106,500.0,0.00015937,2]
[402993561,1769027622142,500.0,0.00015937,2]
[402993562,1769027622178,500.0,0.00015937,2]
[402993563,1769027622212,500.0,0.00015937,2]
[402993564,1769027622246,208.05889435,0.00015937,2]
[402993565,1769027622280,500.0,0.00015937,2]
[402993566,1769027622334,500.0,0.00015937,2]
[402993567,1769027622474,500.0,0.00015937,2]
[402993568,1769027623317,-289.0,0.00015938,2]
[402993569,1769027624969,-446.21963096,0.00015938,2]
[402993570,1769027629500,-177.57814651,0.00015938,2]
[402993571,1769027631287,-196.48106986,0.00015938,2]
[402993572,1769027634024,-328.01806371,0.00015938,2]
[402993573,1769027637065,-198.74580302,0.00015938,2]
[402993574,1769027640207,-171.33430869,0.00015938,2]
[402993575,1769027642642,-154.53466593,0.00015938,2]
[402993576,1769027644747,-165.94860901,0.00015938,2]
[402993577,1769027647706,-192.35570445,0.00015938,2]
[402993578,1769027654988,-217.45216286,0.00015938,2]
[402993579,1769027655281,301.61837586,0.00015937,2]
[402993580,1769027656685,-392.28031827,0.00015938,2]
[402993581,1769027661483,-276.73764997,0.00015938,2]
[402993582,1769027662931,194.27744331,0.00015937,2]
[402993583,1769027662954,305.72255669,0.00015937,2]
[402993584,1769027663006,500.0,0.00015937,2]
[402993585,1769027663105,375.50294833,0.00015937,2]
[402993586,1769027669160,500.0,0.00015937,2]
[402993587,1769027669211,421.18348547,0.00015937,2]
[402993588,1769027669263,500.0,0.00015937,2]
[402993589,1769027670248,-168560.97362806,0.00015938,2]
[402993590,1769027670273,-1000.0,0.00015938,2]
[402993591,1769027670298,-16574.4685,0.00015938,2]
[402993592,1769027670322,-300.0,0.00015944,2]
[402993593,1769027670345,-300.0,0.00015944,2]
[402993594,1769027670369,-195.0,0.00015944,2]
[402993595,1769027670394,-600.0,0.00015949,2]
[402993596,1769027670420,-1082.2388578,0.0001596,2]
[402993597,1769027670444,-300.0,0.00016006,2]
[402993598,1769027670469,-300.0,0.00016006,2]
[402993599,1769027670692,-335.65494047,0.00016006,2]
[402993600,1769027670723,-195.0,0.00016006,2]
[402993601,1769027670746,-500.0,0.00016037,2]
[402993602,1769027670769,-500.0,0.00016037,2]
[402993603,1769027670794,-500.0,0.00016037,2]
[402993604,1769027670817,-500.0,0.00016037,2]
[402993605,1769027670842,-500.0,0.00016037,2]
[402993606,1769027670868,-500.0,0.00016037,2]
[402993607,1769027670891,-500.0,0.00016037,2]
[402993608,1769027670917,-150.00024477,0.00016147,2]
[402993609,1769027670941,-150.0,0.00017091,2]
[402993610,1769027670967,-200.0,0.00017235,2]
[402993611,1769027670991,-200.0,0.000174,6]
[402993612,1769027671016,-1400.0,0.000174,6]
[402993613,1769027671041,-150.00024477,0.00017486,2]
[402993614,1769027671066,-2585.38,0.00017486,2]
[402993615,1769027671090,-299.99,0.00017486,4]
[402993616,1769027671118,-560.27,0.00017486,5]
[402993617,1769027671142,-9999.99,0.00017486,2]
[402993618,1769027671166,-150.99,0.00017486,2]
[402993619,1769027671190,-535.14,0.00017486,2]
[402993620,1769027671213,-4716.27,0.00017486,2]
[402993621,1769027671236,-9999.99,0.00017486,2]
[402993622,1769027671259,-749.31,0.00017486,2]
[402993623,1769027671283,-9999.99,0.00017486,2]
[402993624,1769027671306,-9533.55,0.00017486,2]
[402993625,1769027671329,-400.0,0.000175,6]
[402993626,1769027671353,-2800.0,0.000175,6]
[402993627,1769027671376,-600.0,0.00017532,2]
[402993628,1769027671400,-375.32425764,0.00017532,2]
[402993629,1769027671424,-300.0,0.00017532,2]
[402993630,1769027671448,-300.0,0.00017532,2]
[402993631,1769027671477,-195.0,0.00017532,2]
[402993632,1769027671502,-2500.0,0.00017532,2]
[402993633,1769027671530,-150.99,0.00017537,2]
[402993634,1769027671558,-600.0,0.000176,6]
[402993635,1769027671583,-4200.0,0.000176,6]
[402993636,1769027671608,-511.0,0.00017603,2]
[402993637,1769027671634,-2491.511,0.0001764,2]
[402993638,1769027671662,-281.039,0.0001764,2]
[402993639,1769027671687,-500.0,0.0001764,2]
[402993640,1769027671711,-280.21079314,0.00017641,2]
[402993641,1769027671734,-414.59659535,0.00017641,2]
[402993642,1769027671757,-511.0,0.00017652,2]
[402993643,1769027671783,-800.0,0.000177,6]
[402993644,1769027671807,-5600.0,0.000177,6]
[402993645,1769027671832,-511.0,0.00017792,2]
[402993646,1769027671858,-250.0,0.00017796,2]
[402993647,1769027671882,-1000.0,0.000178,6]
[402993648,1769027671908,-7000.0,0.000178,6]
[402993649,1769027671932,-150.0,0.00017863,2]
[402993650,1769027671958,-547.0,0.00017863,2]
[402993651,1769027671983,-150.0,0.00017863,2]
[402993652,1769027672010,-505.0,0.00017863,2]
[402993653,1769027672035,-150.0,0.00017863,2]
[402993654,1769027672058,-500.0,0.00017863,2]
[402993655,1769027672082,-150.0,0.00017863,2]
[402993656,1769027672107,-500.0,0.00017863,2]
[402993657,1769027672133,-150.0,0.00017863,2]
[402993658,1769027672158,-522.0,0.00017863,2]
[402993659,1769027672183,-150.0,0.00017863,2]
[402993660,1769027672208,-250.0,0.00017898,2]
[402993661,1769027672234,-101799.22823079,0.000179,2]
[402993662,1769027672260,-505.48575126,0.000179,2]
[402993663,1769027672285,-195.5815019,0.000179,3]
[402993664,1769027672452,-363.05574867,0.000179,2]
[402993665,1769027672482,-200.0,0.000179,6]
[402993666,1769027672506,-153.18312806,0.000179,2]
[402993667,1769027672529,-2390.0970622,0.000179,2]
[402993668,1769027672556,-1400.0,0.000179,6]
[402993669,1769027672582,-500.0,0.00017914,2]
[402993670,1769027672605,-150.0,0.00017918,2]
[402993671,1769027672630,-547.0,0.00017918,2]
[402993672,1769027672657,-150.0,0.00017918,2]
[402993673,1769027672680,-505.0,0.00017918,2]
[402993674,1769027672705,-500.0,0.00017918,2]
[402993675,1769027672729,-500.0,0.00017918,2]
[402993676,1769027672752,-522.0,0.00017918,2]
[402993677,1769027672776,-150.0,0.00017918,2]
[402993678,1769027672801,-511.0,0.00017945,2]
[402993679,1769027672824,-150.0,0.00017973,2]
[402993680,1769027672848,-547.0,0.00017973,2]
[402993681,1769027672872,-150.0,0.00017973,2]
[402993682,1769027672896,-505.0,0.00017973,2]
[402993683,1769027672922,-500.0,0.00017973,2]
[402993684,1769027672946,-500.0,0.00017973,2]
[402993685,1769027672971,-522.0,0.00017973,2]
[402993686,1769027672998,-150.0,0.00017973,2]
[402993687,1769027673023,-30935.0,0.00017973,2]
[402993688,1769027673048,-200.0,0.00017973,2]
[402993689,1769027673072,-151.0,0.00017989,2]
[402993690,1769027673098,-151.0,0.00017989,2]
[402993691,1769027673123,-151.0,0.00017989,2]
[402993692,1769027673147,-151.0,0.00017989,2]
[402993693,1769027673173,-151.0,0.00017989,2]
[402993694,1769027673198,-151.0,0.00017989,2]
[402993695,1769027673222,-151.0,0.00017989,2]
[402993696,1769027673246,-151.0,0.00017989,2]
[402993697,1769027673270,-151.0,0.00017989,2]
[402993698,1769027673295,-250.0,0.00017989,2]
[402993699,1769027673318,-151.0,0.00017989,2]
[402993700,1769027673342,-174.61919141,0.00017989,2]
[402993701,1769027673366,-250.0,0.00017989,2]
[402993702,1769027673390,-268.80388743,0.00017989,2]
[402993703,1769027673417,-250.0,0.00017989,2]
[402993704,1769027673440,-500.0,0.00017989,2]
[402993705,1769027673464,-250.0,0.00017989,2]
[402993706,1769027673493,-500.0,0.00017989,2]
[402993707,1769027673517,-533.88981491,0.00017989,2]
[402993708,1769027673543,-500.0,0.00017989,2]
[402993709,1769027673567,-250.0,0.00017989,2]
[402993710,1769027673590,-500.0,0.00017989,2]
[402993711,1769027673614,-500.0,0.00017989,2]
[402993712,1769027673638,-250.0,0.00017989,2]
[402993713,1769027673676,-500.0,0.00017989,2]
[402993714,1769027673717,-500.0,0.00017989,2]
[402993715,1769027673758,-250.0,0.00017989,2]
[402993716,1769027673801,-500.0,0.00017989,2]
[402993717,1769027673842,-500.0,0.00017989,2]
[402993718,1769027673883,-250.0,0.00017989,2]
[402993719,1769027673923,-200.0,0.00017989,2]
[402993720,1769027673958,-500.0,0.00017989,2]
[402993721,1769027673997,-500.0,0.00017989,2]
[402993722,1769027674034,-202.31671679,0.00017989,2]
[402993723,1769027674067,-250.0,0.00017989,2]
[402993724,1769027674106,-500.0,0.00017989,2]
[402993725,1769027674141,-500.0,0.00017989,2]
[402993726,1769027674175,-250.0,0.00017989,2]
[402993727,1769027674213,-500.0,0.00017989,2]
[402993728,1769027674250,-500.0,0.00017989,2]
[402993729,1769027674285,-250.0,0.00017989,2]
[402993730,1769027674320,-500.0,0.00017989,2]
[402993731,1769027674355,-500.0,0.00017989,2]
[402993732,1769027674390,-250.0,0.00017989,2]
[402993733,1769027674425,-500.0,0.00017989,2]
[402993734,1769027674461,-500.0,0.00017989,2]
[402993735,1769027674498,-195.44186948,0.00017989,2]
[402993736,1769027674533,-500.0,0.00017989,2]
[402993737,1769027674569,-500.0,0.00017989,2]
[402993738,1769027674605,-500.0,0.00017989,2]
[402993739,1769027674641,-500.0,0.00017989,2]
[402993740,1769027674676,-500.0,0.00017989,2]
[402993741,1769027674710,-500.0,0.00017989,2]
[402993742,1769027674747,-500.0,0.00017989,2]
[402993743,1769027674786,-194.72792766,0.00017989,2]
[402993744,1769027674825,-151.0,0.00017989,2]
[402993745,1769027674863,-500.0,0.00017989,2]
[402993746,1769027674902,-500.0,0.00017989,2]
[402993747,1769027674943,-500.0,0.00017989,2]
[402993748,1769027674979,-500.0,0.00017989,2]
[402993749,1769027675015,-500.0,0.00017989,2]
[402993750,1769027675052,-500.0,0.00017989,2]
[402993751,1769027675088,-500.0,0.00017989,2]
[402993752,1769027675123,-500.0,0.00017989,2]
[402993753,1769027675158,-500.0,0.00017989,2]
[402993754,1769027675194,-500.0,0.00017989,2]
[402993755,1769027675229,-500.0,0.00017989,2]
[402993756,1769027675264,-500.0,0.00017989,2]
[402993757,1769027675301,-500.0,0.00017989,2]
[402993758,1769027675333,-319.38438922,0.00017989,2]
[402993759,1769027675358,-500.0,0.00017989,2]
[402993760,1769027675384,-151.0,0.00017989,2]
[402993761,1769027675409,-151.0,0.00017989,2]
[402993762,1769027675799,-151.0,0.00017989,2]
[402993763,1769027675827,-151.0,0.00017989,2]
[402993764,1769027675853,-151.0,0.00017989,2]
[402993765,1769027675878,-151.0,0.00017989,2]
[402993766,1769027675904,-151.0,0.00017989,2]
[402993767,1769027675930,-151.0,0.00017989,2]
[402993768,1769027675955,-151.0,0.00017989,2]
[402993769,1769027675981,-151.0,0.00017989,2]
[402993770,1769027676006,-151.0,0.00017989,2]
[402993771,1769027676032,-151.0,0.00017989,2]
[402993772,1769027676057,-151.0,0.00017989,2]
[402993773,1769027676083,-151.0,0.00017989,2]
[402993774,1769027676108,-151.0,0.00017989,2]
[402993775,1769027676132,-151.0,0.00017989,2]
[402993776,1769027676158,-151.0,0.00017989,2]
[402993777,1769027676182,-151.0,0.00017989,2]
[402993778,1769027676206,-151.0,0.00017989,2]
[402993779,1769027676230,-151.0,0.00017989,2]
[402993780,1769027676255,-151.0,0.00017989,2]
[402993781,1769027676278,-151.0,0.00017989,2]
[402993782,1769027676303,-151.0,0.00017989,2]
[402993783,1769027676327,-151.0,0.00017989,2]
[402993784,1769027676350,-151.0,0.00017989,2]
[402993785,1769027676376,-151.0,0.00017989,2]
[402993786,1769027676403,-151.0,0.00017989,2]
[402993787,1769027676427,-151.0,0.00017989,2]
[402993788,1769027676451,-200.0,0.00017989,2]
[402993789,1769027676476,-150.0,0.00017999,2]
[402993790,1769027676506,-150.0,0.00017999,2]
[402993791,1769027676532,-500.0,0.00017999,2]
[402993792,1769027676557,-193.31605597,0.00017999,2]
[402993793,1769027676580,-248.64134578,0.00017999,2]
[402993794,1769027676603,-500.0,0.00017999,2]
[402993795,1769027676632,-500.0,0.00017999,2]
[402993796,1769027676656,-376.15733529,0.00017999,2]
[402993797,1769027676682,-500.0,0.00017999,2]
[402993798,1769027676707,-633.53178482,0.00017999,2]
[402993799,1769027676731,-500.0,0.00017999,2]
[402993800,1769027676755,-500.0,0.00017999,2]
[402993801,1769027676778,-500.0,0.00017999,2]
[402993802,1769027676802,-500.0,0.00017999,2]
[402993803,1769027676826,-193.49099519,0.00017999,2]
[402993804,1769027676849,-500.0,0.00017999,2]
[402993805,1769027676874,-500.0,0.00017999,2]
[402993806,1769027676899,-500.0,0.00017999,2]
[402993807,1769027676923,-500.0,0.00017999,2]
[402993808,1769027676948,-500.0,0.00017999,2]
[402993809,1769027676974,-500.0,0.00017999,2]
[402993810,1769027676998,-297.47648537,0.00017999,2]
[402993811,1769027677022,-500.0,0.00017999,2]
[402993812,1769027677047,-450.0,0.00017999,2]
[402993813,1769027677072,-48676.1241876,0.00018,2]
[402993814,1769027677099,-2909.99999999,0.00018,2]
[402993815,1769027677125,-4480922.56852821,0.00018,2]
[402993816,1769027681592,-17558.9713,0.000179,2]
[402993817,1769027681616,-815272.2545132,0.00018,2]
[402993818,1769027681641,-300.425739,0.00018,2]
[402993819,1769027681666,-300.425739,0.00018,2]
[402993820,1769027681690,-300.425739,0.00018,2]
[402993821,1769027681714,-300.425739,0.00018,2]